[Event "GER-ch Women Open 2019"]
[Site "Bodenmais"]
[Date "2019.07.30"]
[Round "4.6"]
[White "Wolff, Beate"]
[Black "Peglau, Adelheid"]
[Result "1-0"]
[ECO "D10"]
[WhiteElo "1238"]
[BlackElo "1187"]
[Annotator "NA"]
[PlyCount "45"]
[EventDate "2019.07.27"]
[EventType "swiss"]
[EventCountry "GER"]
[SourceTitle "playchess.com"]
[Source "ChessBase"]
[SourceQuality "1"]
[TimeControl "40/5400+30:900+30"]

1. c4 {[%emt 0:00:00]} c6 {[%emt 0:03:36]} 2. Nf3 {[%emt 0:00:47]} d5 {[%emt 0:05:29]} 3. cxd5 {[%emt 0:03:20]} cxd5 {[%emt 0:00:28]} 4. d4 {[%emt 0:01:03]} Nf6 {[%emt 0:00:47]} 5. g3 {[%emt 0:01:03]} Bg4 {[%emt 0:03:36]} 6. Bg2 {[%emt 0:01:26]} e6 {[%emt 0:01:16]} 7. O-O {[%emt 0:00:47]} Nc6 {[%emt 0:00:46]} 8. Bf4 {[%emt 0:07:46]} Qb6 {[%emt 0:04:34]} 9. b3 {[%emt 0:08:08]} Bxf3 {[%emt 0:01:03]} 10. Bxf3 {[%emt 0:03:22]} Nxd4 {[%emt 0:01:32]} 11. Nd2 {[%emt 0:06:54]} Nxf3+ {[%emt 0:00:30]} 12. Nxf3 {[%emt 0:01:39]} Bc5 {[%emt 0:05:04]} 13. e3 {[%emt 0:07:33]} Rc8 {[%emt 0:07:55]} 14. Rc1 {[%emt 0:04:58]} Ke7 {[%emt 0:01:32]} 15. Nd4 {[%emt 0:07:32]} Bxd4 {[%emt 0:03:53]} 16. Qxd4 {[%emt 0:04:40]} Qxd4 {[%emt 0:00:52]} 17. exd4 {[%emt 0:00:12]} Ne4 {[%emt 0:04:15]} 18. Rxc8 {[%emt 0:09:14]} Rxc8 {[%emt 0:00:26]} 19. Rc1 {[%emt 0:01:37]} Rxc1+ {[%emt 0:01:27]} 20. Bxc1 {[%emt 0:00:12]} f5 {[%emt 0:06:47]} 21. h4 {[%emt 0:04:09]} Kf6 {[%emt 0:02:53]} 22. Kg2 {[%emt 0:04:33]} h6 {[%emt 0:03:17]} 23. a4 {[%emt 0:01:33]} 1-0

[Event "GER-ch Women Open 2019"]
[Site "Bodenmais"]
[Date "2019.07.30"]
[Round "4.7"]
[White "Navarro Ortega-Villaizan, Alba"]
[Black "Peglau, Lorena"]
[Result "1-0"]
[ECO "A04"]
[WhiteElo "700"]
[BlackElo "1108"]
[Annotator "NA"]
[PlyCount "71"]
[EventDate "2019.07.27"]
[EventType "swiss"]
[EventCountry "GER"]
[SourceTitle "playchess.com"]
[Source "ChessBase"]
[SourceQuality "1"]
[TimeControl "40/5400+30:900+30"]

1. Nf3 {[%emt 0:00:00]} c6 {[%emt 0:00:00]} 2. d4 {[%emt 0:00:12]} d5 {[%emt 0:00:00]} 3. Nc3 {[%emt 0:00:21]} Bf5 {[%emt 0:00:13]} 4. Bf4 {[%emt 0:01:06]} Nd7 {[%emt 0:00:25]} 5. e3 {[%emt 0:00:43]} Ngf6 {[%emt 0:00:14]} 6. Bd3 {[%emt 0:00:49]} Bg6 {[%emt 0:00:21]} 7. O-O {[%emt 0:02:46]} e6 {[%emt 0:00:13]} 8. Bg5 {[%emt 0:02:33]} Be7 {[%emt 0:00:22]} 9. Bf4 {[%emt 0:02:35]} O-O {[%emt 0:00:33]} 10. Re1 {[%emt 0:01:00]} Rb8 {[%emt 0:01:04]} 11. e4 {[%emt 0:01:38]} Rc8 {[%emt 0:00:27]} 12. e5 {[%emt 0:01:19]} Ne8 {[%emt 0:01:25]} 13. Bxg6 {[%emt 0:02:59]} hxg6 {[%emt 0:00:13]} 14. Qc1 {[%emt 0:02:02]} f6 {[%emt 0:02:55]} 15. h3 {[%emt 0:02:37]} g5 {[%emt 0:01:09]} 16. exf6 {[%emt 0:01:19]} Bxf6 {[%emt 0:00:41]} 17. Bxg5 {[%emt 0:02:30]} Bxg5 {[%emt 0:00:37]} 18. Nxg5 {[%emt 0:00:52]} Qf6 {[%emt 0:01:38]} 19. Rf1 {[%emt 0:00:50]} Nc7 {[%emt 0:00:50]} 20. Qd2 {[%emt 0:02:27]} c5 {[%emt 0:02:25]} 21. Rad1 {[%emt 0:01:47]} cxd4 {[%emt 0:00:18]} 22. Qxd4 {[%emt 0:00:47]} Qxg5 {[%emt 0:00:52]} 23. h4 Qe5 24. Qxa7 {[%emt 0:01:15]} Rb8 {[%emt 0:01:48]} 25. Rde1 {[%emt 0:01:20]} Qf6 26. b4 {[%emt 0:01:28]} Qxh4 {[%emt 0:01:49]} 27. b5 {[%emt 0:01:12]} b6 {[%emt 0:00:35]} 28. Qxc7 {[%emt 0:00:39]} Qe7 {[%emt 0:01:20]} 29. Re2 {[%emt 0:02:22]} Rfc8 {[%emt 0:00:21]} 30. Qg3 {[%emt 0:01:20]} Qa3 {[%emt 0:01:35]} 31. Re3 {[%emt 0:00:34]} d4 {[%emt 0:00:54]} 32. Rxe6 {[%emt 0:00:33]} Rxc3 {[%emt 0:00:33]} 33. Qg5 {[%emt 0:00:45]} Qxa2 34. Re7 g6 {[%emt 0:10:22]} 35. Qxg6+ {[%emt 0:01:03]} Kf8 36. Qg7# {[%emt 0:00:44] Ke8} 1-0

[Event "GER-ch Women Open 2019"]
[Site "Bodenmais"]
[Date "2019.07.31"]
[Round "5.1"]
[White "Peglau, Dora"]
[Black "Von Herman, Brigitte"]
[Result "0-1"]
[ECO "A21"]
[WhiteElo "1300"]
[BlackElo "2062"]
[Annotator "NA"]
[PlyCount "79"]
[EventDate "2019.07.27"]
[EventType "swiss"]
[EventCountry "GER"]
[SourceTitle "playchess.com"]
[Source "ChessBase"]
[SourceQuality "1"]
[TimeControl "40/5400+30:900+30"]

1. c4 {[%emt 0:00:00]} d6 {[%emt 0:00:00]} 2. Nc3 {[%emt 0:00:00]} e5 {[%emt 0:00:00]} 3. Nf3 {[%emt 0:00:06]} f5 {[%emt 0:01:01]} 4. d4 {[%emt 0:02:36]} Nd7 {[%emt 0:06:27]} 5. b3 {[%emt 0:20:23]} e4 {[%emt 0:17:12]} 6. Ng5 {[%emt 0:04:46]} Ndf6 {[%emt 0:01:50]} 7. Nh3 {[%emt 0:05:27]} d5 {[%emt 0:08:40]} 8. e3 {[%emt 0:05:38]} c6 {[%emt 0:03:00]} 9. Bb2 {[%emt 0:06:08]} Bd6 {[%emt 0:04:01]} 10. Rc1 {[%emt 0:01:26]} Ne7 {[%emt 0:00:36]} 11. Be2 {[%emt 0:04:55]} O-O {[%emt 0:00:09]} 12. c5 {[%emt 0:04:55]} Bc7 {[%emt 0:00:27]} 13. b4 {[%emt 0:02:58]} b5 {[%emt 0:05:30]} 14. cxb6 {[%emt 0:04:17]} axb6 {[%emt 0:00:26]} 15. Qb3 {[%emt 0:06:23]} Qd6 {[%emt 0:03:37]} 16. Ba3 {[%emt 0:01:48]} Bd7 {[%emt 0:04:16]} 17. Na4 {[%emt 0:05:56]} b5 {[%emt 0:06:36]} 18. Nc5 {[%emt 0:01:38]} Ra7 {[%emt 0:01:59]} 19. Bb2 {[%emt 0:00:42]} Rfa8 {[%emt 0:01:05]} 20. a3 {[%emt 0:00:17]} h6 {[%emt 0:04:56]} 21. Bf1 {[%emt 0:06:55]} Be8 {[%emt 0:01:01]} 22. Be2 {[%emt 0:02:16]} Nc8 {[%emt 0:01:24]} 23. Ra1 {[%emt 0:06:22]} Nb6 {[%emt 0:01:02]} 24. Nf4 {[%emt 0:01:13]} Bf7 {[%emt 0:00:57]} 25. Bd1 {[%emt 0:01:00]} Nc4 {[%emt 0:01:43]} 26. Ne2 {[%emt 0:01:36]} Qe7 {[%emt 0:00:33]} 27. Nf4 {[%emt 0:01:40]} g5 {[%emt 0:01:39]} 28. Ne2 {[%emt 0:00:33]} f4 {[%emt 0:00:38]} 29. Bc1 {[%emt 0:00:27]} fxe3 {[%emt 0:01:57]} 30. fxe3 {[%emt 0:00:08]} Ng4 {[%emt 0:01:23]} 31. h3 {[%emt 0:00:27]} Nf6 {[%emt 0:00:21]} 32. g4 {[%emt 0:02:21]} Kg7 {[%emt 0:01:54]} 33. Rg1 {[%emt 0:00:40]} Bg6 {[%emt 0:00:22]} 34. Nc3 {[%emt 0:00:17]} Bh2 {[%emt 0:01:55]} 35. Rg2 {[%emt 0:00:07]} Qd6 {[%emt 0:00:57]} 36. Be2 {[%emt 0:00:23]} Bg3+ {[%emt 0:00:39]} 37. Kd1 {[%emt 0:00:11]} Bh4 {[%emt 0:00:27]} 38. Bxc4 {[%emt 0:00:51]} dxc4 {[%emt 0:04:02]} 39. Qc2 {[%emt 0:00:17]} h5 {[%emt 0:02:27]} 40. Bb2 {[%emt 0:00:00]} 0-1

[Event "GER-ch Women Open 2019"]
[Site "Bodenmais"]
[Date "2019.07.31"]
[Round "5.2"]
[White "Steckmann, Kerstin"]
[Black "Ries, Jutta"]
[Result "0-1"]
[ECO "D45"]
[WhiteElo "1653"]
[BlackElo "1983"]
[Annotator "NA"]
[PlyCount "74"]
[EventDate "2019.07.27"]
[EventType "swiss"]
[EventCountry "GER"]
[SourceTitle "playchess.com"]
[Source "ChessBase"]
[SourceQuality "1"]
[TimeControl "40/5400+30:900+30"]

1. d4 {[%emt 0:00:00]} d5 {[%emt 0:00:00]} 2. c4 {[%emt 0:00:00]} c6 {[%emt 0:00:47]} 3. e3 {[%emt 0:00:20]} Nf6 {[%emt 0:00:15]} 4. Nc3 {[%emt 0:00:09]} e6 {[%emt 0:01:22]} 5. Nf3 {[%emt 0:00:13]} Bd6 {[%emt 0:00:30]} 6. Be2 {[%emt 0:01:48]} O-O {[%emt 0:00:08]} 7. O-O {[%emt 0:00:04]} Nbd7 {[%emt 0:00:37]} 8. b3 {[%emt 0:02:59]} Re8 {[%emt 0:02:02]} 9. Bb2 {[%emt 0:00:39]} Nf8 {[%emt 0:00:55]} 10. Qc2 {[%emt 0:03:22]} Ng6 {[%emt 0:17:52]} 11. Rad1 {[%emt 0:01:38]} b6 {[%emt 0:20:53]} 12. e4 {[%emt 0:05:14]} dxe4 {[%emt 0:00:56]} 13. Nxe4 {[%emt 0:00:05]} Nxe4 {[%emt 0:03:42]} 14. Qxe4 {[%emt 0:00:02]} Bb7 {[%emt 0:01:13]} 15. Qc2 {[%emt 0:02:12]} Nf4 {[%emt 0:07:59]} 16. c5 {[%emt 0:07:06]} Nxe2+ {[%emt 0:01:25]} 17. Qxe2 {[%emt 0:00:02]} Bc7 {[%emt 0:00:22]} 18. Rfe1 {[%emt 0:07:08]} Qd5 {[%emt 0:02:29]} 19. Qe4 {[%emt 0:10:32]} Qxe4 {[%emt 0:02:05]} 20. Rxe4 {[%emt 0:00:01]} Red8 {[%emt 0:00:21]} 21. Rde1 {[%emt 0:03:04]} Rd5 {[%emt 0:01:47]} 22. b4 {[%emt 0:01:47]} a5 {[%emt 0:00:11]} 23. a3 {[%emt 0:01:10]} axb4 {[%emt 0:00:24]} 24. axb4 {[%emt 0:00:02]} Ra2 {[%emt 0:06:51]} 25. Bc1 {[%emt 0:08:40]} h6 {[%emt 0:20:02]} 26. R4e2 {[%emt 0:06:38]} Ra4 {[%emt 0:00:11]} 27. Bd2 {[%emt 0:01:10]} Ba6 {[%emt 0:01:20]} 28. Re4 {[%emt 0:00:57]} Bd3 {[%emt 0:03:39]} 29. Rh4 {[%emt 0:02:29]} Bf5 {[%emt 0:03:18]} 30. g4 {[%emt 0:03:29]} Bd3 {[%emt 0:00:33]} 31. g5 {[%emt 0:01:19]} hxg5 {[%emt 0:00:01]} 32. Nxg5 {[%emt 0:01:05]} bxc5 {[%emt 0:00:27]} 33. dxc5 {[%emt 0:03:04]} Bf5 {[%emt 0:01:17]} 34. Be3 {[%emt 0:03:26]} Bd8 {[%emt 0:00:01]} 35. f4 {[%emt 0:05:23]} Rxb4 {[%emt 0:00:22]} 36. Rh8+ {[%emt 0:01:37]} Kxh8 {[%emt 0:00:05]} 37. Nxf7+ {[%emt 0:00:05]} Kg8 {[%emt 0:00:20]} 0-1

[Event "GER-ch Women Open 2019"]
[Site "Bodenmais"]
[Date "2019.07.31"]
[Round "5.3"]
[White "Sewald, Kathrin"]
[Black "Pribylova, Ruzena"]
[Result "1-0"]
[ECO "B50"]
[WhiteElo "2016"]
[BlackElo "1867"]
[Annotator "NA"]
[PlyCount "67"]
[EventDate "2019.07.27"]
[EventType "swiss"]
[EventCountry "GER"]
[SourceTitle "playchess.com"]
[Source "ChessBase"]
[SourceQuality "1"]
[TimeControl "40/5400+30:900+30"]

1. e4 {[%emt 0:00:00]} c5 {[%emt 0:00:00]} 2. Nf3 {[%emt 0:00:00]} d6 {[%emt 0:00:00]} 3. d3 {[%emt 0:00:00]} Nf6 {[%emt 0:00:02]} 4. g3 {[%emt 0:00:00]} g6 {[%emt 0:00:15]} 5. Bg2 {[%emt 0:00:00]} Bg7 {[%emt 0:00:07]} 6. O-O {[%emt 0:00:00]} O-O {[%emt 0:00:06]} 7. Re1 {[%emt 0:00:03]} Nc6 {[%emt 0:00:13]} 8. c3 {[%emt 0:00:17]} Bg4 {[%emt 0:06:52]} 9. h3 {[%emt 0:00:23]} Bd7 {[%emt 0:00:10]} 10. Nbd2 {[%emt 0:05:40]} Rc8 {[%emt 0:06:42]} 11. Nf1 {[%emt 0:02:58]} Ne5 {[%emt 0:07:41]} 12. N3h2 {[%emt 0:06:56]} Bc6 {[%emt 0:02:00]} 13. f4 {[%emt 0:02:29]} Ned7 {[%emt 0:00:28]} 14. g4 {[%emt 0:01:21]} e6 {[%emt 0:04:57]} 15. Ng3 {[%emt 0:01:48]} h6 {[%emt 0:05:35]} 16. h4 {[%emt 0:09:02]} Nb6 {[%emt 0:06:14]} 17. h5 {[%emt 0:03:13]} gxh5 {[%emt 0:01:38]} 18. g5 {[%emt 0:00:58]} h4 {[%emt 0:02:30]} 19. gxf6 {[%emt 0:09:11]} hxg3 {[%emt 0:00:33]} 20. Ng4 {[%emt 0:00:15]} Bxf6 {[%emt 0:01:49]} 21. Nxh6+ {[%emt 0:00:08]} Kg7 {[%emt 0:01:19]} 22. Qg4+ {[%emt 0:08:57]} Kxh6 {[%emt 0:04:22]} 23. Bf3 {[%emt 0:01:15]} Rg8 {[%emt 0:03:28]} 24. f5+ {[%emt 0:02:18]} Rg5 {[%emt 0:02:51]} 25. fxe6 {[%emt 0:01:30]} fxe6 {[%emt 0:01:00]} 26. Kg2 {[%emt 0:01:06]} Kg6 {[%emt 0:00:47]} 27. Bxg5 {[%emt 0:00:31]} Bxg5 {[%emt 0:00:47]} 28. Rh1 {[%emt 0:02:30]} Qg8 {[%emt 0:02:59]} 29. Rh5 {[%emt 0:03:37]} Kf6 {[%emt 0:00:37]} 30. Rf1 {[%emt 0:00:38]} Be3 {[%emt 0:08:49]} 31. Qh4+ {[%emt 0:09:05]} Bg5 {[%emt 0:03:26]} 32. Bg4+ {[%emt 0:00:59]} Ke7 {[%emt 0:01:25]} 33. Rxg5 {[%emt 0:00:05]} Qh8 {[%emt 0:00:40]} 34. Rg7+ {[%emt 0:00:22]} 1-0

[Event "GER-ch Women Open 2019"]
[Site "Bodenmais"]
[Date "2019.07.31"]
[Round "5.4"]
[White "Peglau, Sarah"]
[Black "Wolff, Beate"]
[Result "1-0"]
[ECO "B18"]
[WhiteElo "1525"]
[BlackElo "1238"]
[Annotator "NA"]
[PlyCount "57"]
[EventDate "2019.07.27"]
[EventType "swiss"]
[EventCountry "GER"]
[SourceTitle "playchess.com"]
[Source "ChessBase"]
[SourceQuality "1"]
[TimeControl "40/5400+30:900+30"]

1. e4 {[%emt 0:00:00]} c6 {[%emt 0:00:00]} 2. d4 {[%emt 0:00:00]} d5 {[%emt 0:00:00]} 3. Nc3 {[%emt 0:00:00]} dxe4 {[%emt 0:00:08]} 4. Nxe4 {[%emt 0:00:00]} Bf5 {[%emt 0:00:21]} 5. Ng3 {[%emt 0:00:00]} Bg6 {[%emt 0:00:22]} 6. h4 {[%emt 0:00:05]} h6 {[%emt 0:00:16]} 7. h5 {[%emt 0:00:24]} Bh7 {[%emt 0:00:21]} 8. Nf3 {[%emt 0:00:10]} Nd7 {[%emt 0:00:40]} 9. Bd3 {[%emt 0:00:27]} Bxd3 {[%emt 0:00:42]} 10. Qxd3 {[%emt 0:00:01]} e6 {[%emt 0:00:44]} 11. Bf4 {[%emt 0:01:37]} Qa5+ {[%emt 0:01:19]} 12. Bd2 {[%emt 0:01:09]} Bb4 {[%emt 0:00:30]} 13. c3 {[%emt 0:04:11]} Be7 {[%emt 0:00:26]} 14. a3 {[%emt 0:18:41]} Qc7 {[%emt 0:05:52]} 15. O-O-O {[%emt 0:01:08]} Ngf6 {[%emt 0:02:27]} 16. Ne4 {[%emt 0:02:05]} Nxe4 {[%emt 0:09:31]} 17. Qxe4 {[%emt 0:01:52]} Nf6 {[%emt 0:00:08]} 18. Qe2 {[%emt 0:02:19]} O-O {[%emt 0:03:30]} 19. g4 {[%emt 0:00:54]} Nh7 {[%emt 0:09:16]} 20. Rdg1 {[%emt 0:05:28]} Ng5 {[%emt 0:08:57]} 21. Ne5 {[%emt 0:01:18]} c5 {[%emt 0:05:21]} 22. f4 {[%emt 0:01:36]} Nh7 {[%emt 0:08:31]} 23. g5 {[%emt 0:07:00]} hxg5 {[%emt 0:06:51]} 24. fxg5 {[%emt 0:00:13]} Qd8 {[%emt 0:06:18]} 25. g6 {[%emt 0:03:17]} Ng5 {[%emt 0:05:53]} 26. gxf7+ {[%emt 0:06:16]} Nxf7 {[%emt 0:02:05]} 27. h6 {[%emt 0:09:21]} Ng5 {[%emt 0:01:42]} 28. hxg7 {[%emt 0:08:47]} Kxg7 {[%emt 0:03:26]} 29. Qh5 {[%emt 0:00:27]} 1-0

[Event "GER-ch Women Open 2019"]
[Site "Bodenmais"]
[Date "2019.07.31"]
[Round "5.5"]
[White "Just, Anita"]
[Black "Peglau, Adelheid"]
[Result "1-0"]
[ECO "B15"]
[WhiteElo "1875"]
[BlackElo "1187"]
[Annotator "NA"]
[PlyCount "43"]
[EventDate "2019.07.27"]
[EventType "swiss"]
[EventCountry "GER"]
[SourceTitle "playchess.com"]
[Source "ChessBase"]
[SourceQuality "1"]
[TimeControl "40/5400+30:900+30"]

1. e4 {[%emt 0:00:00]} c6 {[%emt 0:00:00]} 2. d4 {[%emt 0:00:00]} d5 {[%emt 0:00:00]} 3. Nc3 {[%emt 0:00:00]} dxe4 4. Nxe4 Nf6 {[%emt 0:01:01]} 5. Nxf6+ {[%emt 0:01:38]} exf6 {[%emt 0:03:37]} 6. Nf3 {[%emt 0:01:12]} Bd6 {[%emt 0:00:25]} 7. Bd3 {[%emt 0:00:27]} Be6 {[%emt 0:00:34]} 8. Bd2 {[%emt 0:01:00]} Nd7 {[%emt 0:00:28]} 9. c4 {[%emt 0:05:14]} b6 {[%emt 0:10:23]} 10. O-O {[%emt 0:01:12]} Qc7 {[%emt 0:09:29]} 11. h3 {[%emt 0:07:57]} O-O {[%emt 0:04:46]} 12. Rc1 {[%emt 0:04:14]} Rac8 {[%emt 0:11:09]} 13. d5 {[%emt 0:08:27]} Nc5 {[%emt 0:06:26]} 14. Bb1 {[%emt 0:00:51]} cxd5 {[%emt 0:01:44]} 15. cxd5 {[%emt 0:01:07]} Bxd5 {[%emt 0:05:38]} 16. b4 {[%emt 0:01:00]} Rfe8 {[%emt 0:08:59]} 17. bxc5 {[%emt 0:03:47]} Bxc5 {[%emt 0:00:16]} 18. Be3 {[%emt 0:09:10]} Rxe3 {[%emt 0:07:13]} 19. Qxd5 {[%emt 0:02:06]} Re2 {[%emt 0:04:03]} 20. Qd3 {[%emt 0:10:30]} Qe5 {[%emt 0:13:39]} 21. Nxe5 {[%emt 0:03:40]} Bxf2+ {[%emt 0:01:28]} 22. Kh2 1-0

[Event "GER-ch Women Open 2019"]
[Site "Bodenmais"]
[Date "2019.07.31"]
[Round "5.6"]
[White "Navarro Ortega-Villaizan, Lucia"]
[Black "Navarro Ortega-Villaizan, Alba"]
[Result "1-0"]
[ECO "C57"]
[WhiteElo "1113"]
[BlackElo "700"]
[Annotator "NA"]
[PlyCount "71"]
[EventDate "2019.07.27"]
[EventType "swiss"]
[EventCountry "GER"]
[SourceTitle "playchess.com"]
[Source "ChessBase"]
[SourceQuality "1"]
[TimeControl "40/5400+30:900+30"]

1. e4 {[%emt 0:00:00]} Nc6 {[%emt 0:00:02]} 2. Nf3 {[%emt 0:00:00]} e5 {[%emt 0:00:22]} 3. Bc4 {[%emt 0:00:00]} Nf6 {[%emt 0:00:54]} 4. Ng5 {[%emt 0:00:00]} d5 {[%emt 0:00:28]} 5. exd5 {[%emt 0:00:05]} Nxd5 {[%emt 0:00:16]} 6. Nxf7 {[%emt 0:00:07]} Qd7 {[%emt 0:01:07]} 7. Nxh8 {[%emt 0:00:17]} Nf4 {[%emt 0:00:44]} 8. Qf3 {[%emt 0:00:35]} Nd4 {[%emt 0:00:45]} 9. Qe4 {[%emt 0:03:06]} Qg4 {[%emt 0:01:42]} 10. Qxe5+ {[%emt 0:14:14]} Be6 {[%emt 0:03:02]} 11. Bb5+ {[%emt 0:15:11]} Nc6 {[%emt 0:02:30]} 12. Bxc6+ {[%emt 0:00:34]} bxc6 {[%emt 0:01:30]} 13. g3 {[%emt 0:04:40]} Bd6 {[%emt 0:01:36]} 14. Qe4 {[%emt 0:05:25]} Ng2+ {[%emt 0:00:42]} 15. Qxg2 {[%emt 0:00:55]} Bd5 {[%emt 0:01:24]} 16. Qf1 {[%emt 0:01:07]} Bxh1 {[%emt 0:00:43]} 17. Qxh1 {[%emt 0:00:04]} Kd7 {[%emt 0:02:21]} 18. Nf7 Qe6+ 19. Kf1 {[%emt 0:02:54]} Qxf7 {[%emt 0:01:08]} 20. d3 {[%emt 0:00:41]} Bc5 {[%emt 0:01:35]} 21. f4 {[%emt 0:04:05]} Re8 {[%emt 0:02:56]} 22. Nc3 {[%emt 0:03:40]} Re7 {[%emt 0:01:10]} 23. Bd2 {[%emt 0:01:23]} Be3 {[%emt 0:02:05]} 24. Bxe3 {[%emt 0:01:26]} Rxe3 {[%emt 0:00:26]} 25. Ne4 {[%emt 0:00:08]} Qh5 {[%emt 0:01:26]} 26. Qg2 {[%emt 0:01:07]} c5 {[%emt 0:01:15]} 27. Qf2 {[%emt 0:02:00]} Qh3+ {[%emt 0:01:19]} 28. Kg1 {[%emt 0:01:51]} Rxe4 {[%emt 0:01:28]} 29. dxe4 {[%emt 0:00:12]} Kd6 {[%emt 0:00:24]} 30. Rd1+ {[%emt 0:00:14]} Kc6 {[%emt 0:00:46]} 31. e5 {[%emt 0:00:29]} Qg4 {[%emt 0:01:06]} 32. Rf1 {[%emt 0:00:54]} Kd5 {[%emt 0:01:19]} 33. Qf3+ {[%emt 0:00:21]} Qxf3 {[%emt 0:01:47]} 34. Rxf3 {[%emt 0:00:06]} Ke4 {[%emt 0:00:44]} 35. Re3+ {[%emt 0:00:44]} Kxe3 {[%emt 0:03:10]} 36. e6 {[%emt 0:00:04]} 1-0

[Event "GER-ch Women Open 2019"]
[Site "Bodenmais"]
[Date "2019.07.31"]
[Round "5.7"]
[White "Weinmann, Helene"]
[Black "Peglau, Lorena"]
[Result "1-0"]
[ECO "A40"]
[WhiteElo "1520"]
[BlackElo "1108"]
[Annotator "NA"]
[PlyCount "161"]
[EventDate "2019.07.27"]
[EventType "swiss"]
[EventCountry "GER"]
[SourceTitle "playchess.com"]
[Source "ChessBase"]
[SourceQuality "1"]
[TimeControl "40/5400+30:900+30"]

1. d4 {[%emt 0:00:00]} c6 {[%emt 0:00:00]} 2. Nf3 {[%emt 0:00:00]} d5 {[%emt 0:00:00]} 3. c3 {[%emt 0:00:40]} Bf5 {[%emt 0:00:11]} 4. Nbd2 {[%emt 0:02:56]} Nd7 {[%emt 0:00:38]} 5. e3 {[%emt 0:02:04]} e6 {[%emt 0:00:09]} 6. Be2 {[%emt 0:00:22]} Ngf6 {[%emt 0:00:26]} 7. O-O {[%emt 0:00:30]} Be7 {[%emt 0:00:12]} 8. Qb3 {[%emt 0:01:38]} Qc7 {[%emt 0:00:20]} 9. c4 {[%emt 0:01:19]} O-O {[%emt 0:00:51]} 10. cxd5 {[%emt 0:00:24]} exd5 {[%emt 0:00:36]} 11. Bd3 {[%emt 0:02:09]} Bg6 {[%emt 0:00:25]} 12. Qc2 {[%emt 0:02:42]} Bxd3 {[%emt 0:00:28]} 13. Qxd3 {[%emt 0:00:13]} Rac8 {[%emt 0:02:24]} 14. b3 {[%emt 0:03:43]} Bd6 {[%emt 0:06:34]} 15. h3 {[%emt 0:02:35]} Rfe8 {[%emt 0:01:10]} 16. Bb2 {[%emt 0:01:57]} Ne4 {[%emt 0:10:56]} 17. Rac1 {[%emt 0:00:37]} Nxd2 {[%emt 0:05:16]} 18. Qxd2 {[%emt 0:00:29]} Nf6 {[%emt 0:06:32]} 19. Qe1 {[%emt 0:06:34]} Qb6 20. Qe2 {[%emt 0:01:11]} Ne4 {[%emt 0:08:30]} 21. Ne1 {[%emt 0:03:06]} a6 {[%emt 0:08:05]} 22. Nd3 {[%emt 0:00:28]} Bb8 {[%emt 0:01:54]} 23. Rc2 {[%emt 0:05:45]} Qc7 {[%emt 0:02:18]} 24. g3 {[%emt 0:01:40]} h5 {[%emt 0:07:32]} 25. Qxh5 {[%emt 0:04:03]} Qd6 {[%emt 0:14:15]} 26. Qf3 {[%emt 0:01:51]} Qe6 {[%emt 0:01:13]} 27. Kg2 {[%emt 0:00:45]} Ng5 {[%emt 0:00:43]} 28. Qg4 {[%emt 0:00:22]} Qxg4 {[%emt 0:00:44]} 29. hxg4 {[%emt 0:00:14]} Ne4 {[%emt 0:00:37]} 30. Rh1 {[%emt 0:01:50]} Ba7 {[%emt 0:06:54]} 31. Nf4 {[%emt 0:01:36]} Kf8 {[%emt 0:02:40]} 32. Rh8+ {[%emt 0:00:54]} Ke7 {[%emt 0:00:27]} 33. Rxe8+ {[%emt 0:00:20]} Kxe8 {[%emt 0:00:13]} 34. f3 {[%emt 0:01:22]} Nd6 {[%emt 0:01:29]} 35. Nd3 {[%emt 0:01:27]} Ke7 {[%emt 0:02:54]} 36. Ba3 {[%emt 0:00:34]} Ke6 {[%emt 0:00:21]} 37. Nf4+ {[%emt 0:01:03]} Kd7 {[%emt 0:00:19]} 38. Bxd6 {[%emt 0:01:05]} Kxd6 {[%emt 0:07:19]} 39. Kf2 {[%emt 0:08:48]} b6 {[%emt 0:00:00]} 40. b4 {[%emt 0:00:00]} c5 {[%emt 0:00:00]} 41. bxc5+ bxc5 {[%emt 0:04:23]} 42. dxc5+ {[%emt 0:01:40]} Rxc5 {[%emt 0:01:15]} 43. Rxc5 {[%emt 0:00:18]} Bxc5 {[%emt 0:00:12]} 44. Ke2 {[%emt 0:00:32]} d4 {[%emt 0:01:18]} 45. e4 {[%emt 0:00:43]} Kc6 {[%emt 0:00:51]} 46. Kd3 {[%emt 0:00:13]} Kb5 {[%emt 0:00:14]} 47. Kc2 Ka4 48. Nd3 {[%emt 0:03:18]} Ba7 {[%emt 0:01:48]} 49. Kb2 {[%emt 0:02:11]} Bb8 {[%emt 0:02:04]} 50. f4 {[%emt 0:00:01]} a5 {[%emt 0:01:05]} 51. Nc5+ {[%emt 0:01:43]} Kb5 {[%emt 0:00:23]} 52. Nd3 {[%emt 0:03:19]} Bc7 {[%emt 0:01:44]} 53. e5 {[%emt 0:01:42]} Kc6 {[%emt 0:00:52]} 54. Kc2 {[%emt 0:01:43]} Bb6 {[%emt 0:01:18]} 55. Kd2 {[%emt 0:01:27]} Kd5 {[%emt 0:00:59]} 56. Ke2 {[%emt 0:01:13]} Kc4 57. g5 {[%emt 0:03:49]} Kd5 {[%emt 0:01:36]} 58. Kf3 {[%emt 0:01:12]} Ke6 {[%emt 0:02:04]} 59. Ke4 {[%emt 0:00:30]} Ke7 {[%emt 0:02:13]} 60. g4 {[%emt 0:01:18]} Ke6 {[%emt 0:01:22]} 61. f5+ {[%emt 0:00:22]} Ke7 {[%emt 0:00:16]} 62. Kd5 {[%emt 0:00:40]} Ke8 {[%emt 0:02:01]} 63. a4 {[%emt 0:00:57]} Ba7 {[%emt 0:00:47]} 64. Nb2 {[%emt 0:00:55]} Bb6 {[%emt 0:00:22]} 65. Nc4 {[%emt 0:00:27]} Bd8 {[%emt 0:00:48]} 66. Kxd4 {[%emt 0:00:45]} Bxg5 {[%emt 0:00:29]} 67. Nxa5 {[%emt 0:00:24]} Bd8 {[%emt 0:00:39]} 68. Nc4 {[%emt 0:00:45]} f6 {[%emt 0:00:51]} 69. e6 {[%emt 0:00:17]} Bc7 {[%emt 0:00:46]} 70. Kd5 {[%emt 0:00:24]} Bd8 {[%emt 0:00:31]} 71. a5 {[%emt 0:01:10]} Bxa5 {[%emt 0:00:27]} 72. Nxa5 {[%emt 0:00:11]} Ke7 {[%emt 0:00:07]} 73. Nc6+ {[%emt 0:00:17]} Ke8 {[%emt 0:00:22]} 74. Kd6 {[%emt 0:00:54]} Kf8 {[%emt 0:00:17]} 75. e7+ {[%emt 0:00:20]} Ke8 {[%emt 0:00:32]} 76. Nd4 {[%emt 0:02:12]} Kf7 {[%emt 0:00:37]} 77. Kd7 {[%emt 0:00:24]} Kg8 {[%emt 0:00:29]} 78. e8=Q+ Kh7 79. Qg6+ {[%emt 0:01:45]} Kg8 {[%emt 0:00:49]} 80. Ne6 {[%emt 0:00:24]} Kh8 {[%emt 0:00:28]} 81. Qxg7# 1-0